fUSD/lending_fUSD_20240412
["ID","MTS","AMOUNT","RATE_DAILY","PERIOD"]
[322268675,1712921439622,-334.74,0.000312,2]
[322268676,1712921439632,-8048.96,0.00031406,2]
[322268677,1712921439642,-535.0,0.00031507,2]
[322268678,1712921439652,-643.0,0.00031507,2]
[322268679,1712921439662,-10000.0,0.00031573,2]
[322268680,1712921439672,-197.2,0.00031644,2]
[322268681,1712921439682,-7500.0,0.00031792,2]
[322268682,1712921439691,-400.0,0.000318,11]
[322268683,1712921439701,-156.11551096,0.00031867,2]
[322268684,1712921439711,-4553.76617803,0.00031873,2]
[322268685,1712921439724,-20538.70623538,0.00031873,2]
[322268686,1712921439740,-775.44461026,0.00031873,2]
[322268687,1712921439753,-32334.73669766,0.00031873,2]
[322268688,1712921439763,-6129.8751627,0.00031873,2]
[322268689,1712921439773,-202.68375243,0.00031878,2]
[322268690,1712921439784,-6129.8751627,0.00031878,2]
[322268691,1712921439793,-58202.65372133,0.00031879,2]
[322268692,1712921439803,-810.91366027,0.00031879,2]
[322268693,1712921439813,-810.91366027,0.00031887,2]
[322268694,1712921439832,-58202.65372133,0.00031887,2]
[322268695,1712921439844,-1019.62560757,0.00031888,2]
[322268696,1712921439855,-27208.27030168,0.0003189,2]
[322268697,1712921439865,-58202.65372133,0.00031892,2]
[322268698,1712921439876,-3792.48290357,0.00031899,2]
[322268699,1712921439886,-150.07,0.00031899,2]
[322268700,1712921439896,-800.0,0.000319,11]
[322268701,1712921439907,-202.68375243,0.00031906,2]
[322268702,1712921439918,-27208.27030168,0.00031907,2]
[322268703,1712921439929,-27208.27030168,0.00031909,2]
[322268704,1712921439940,-202.68375243,0.00031911,2]
[322268705,1712921439950,-58202.65372133,0.00031913,2]
[322268706,1712921439960,-3792.48290357,0.00031916,2]
[322268708,1712921439971,-1019.62560757,0.00031918,2]
[322268710,1712921439981,-202.68375243,0.0003192,2]
[322268712,1712921439990,-810.91366027,0.00031921,2]
[322268714,1712921440000,-3792.48290357,0.00031921,2]
[322268716,1712921440010,-1019.62560757,0.00031923,2]
[322268718,1712921440019,-58202.65372133,0.00031925,2]
[322268720,1712921440030,-27208.27030168,0.0003193,2]
[322268723,1712921440040,-3792.48290357,0.0003193,2]
[322268725,1712921440049,-1019.62560757,0.00031933,2]
[322268727,1712921440058,-150.07,0.00031933,2]
[322268729,1712921440068,-3792.48290357,0.00031937,2]
[322268731,1712921440078,-27208.27030168,0.00031938,2]
[322268733,1712921440088,-6129.8751627,0.00031943,2]
[322268735,1712921440098,-58202.65372133,0.00031943,2]
[322268737,1712921440107,-6129.8751627,0.00031944,2]
[322268739,1712921440117,-58202.65372133,0.00031944,2]
[322268741,1712921440126,-1019.62560757,0.00031945,2]
[322268743,1712921440136,-3792.48290357,0.0003195,2]
[322268745,1712921440145,-810.91366027,0.00031953,2]
[322268747,1712921440155,-3792.48290357,0.00031958,2]
[322268749,1712921440168,-810.91366027,0.00031963,2]
[322268751,1712921440178,-6129.8751627,0.00031963,2]
[322268753,1712921440187,-6129.8751627,0.00031965,2]
[322268755,1712921440197,-27208.27030168,0.00031966,2]
[322268757,1712921440207,-202.68375243,0.00031967,2]
[322268760,1712921440216,-810.91366027,0.00031971,2]
[322268762,1712921440226,-810.91366027,0.00031972,2]
[322268764,1712921440236,-27208.27030168,0.00031975,2]
[322268766,1712921440247,-1019.62560757,0.00031975,2]
[322268768,1712921440257,-202.68375243,0.00031977,2]
[322268770,1712921440266,-202.68375243,0.00031979,2]
[322268772,1712921440275,-1019.62560757,0.0003198,2]
[322268774,1712921440284,-150.07,0.00031982,2]
[322268776,1712921440293,-3792.48290357,0.00031983,2]
[322268778,1712921440303,-1019.62560757,0.00031984,2]
[322268780,1712921440313,-27208.27030168,0.00031989,2]
[322268782,1712921440323,-6129.8751627,0.00031989,2]
[322268784,1712921440332,-58202.65372133,0.00031992,2]
[322268786,1712921440342,-810.91366027,0.00031994,2]
[322268788,1712921440351,-27208.27030168,0.00031994,2]
[322268790,1712921440362,-6129.8751627,0.00031996,2]
[322268792,1712921440372,-6129.8751627,0.00031997,2]
[322268794,1712921440383,-202.68375243,0.00031998,2]
[322268796,1712921440392,-1019.62560757,0.00031998,2]
[322268798,1712921440402,-3792.48290357,0.00031998,2]
[322268800,1712921440412,-202.68375243,0.00031999,2]
[322268802,1712921440421,-810.91366027,0.00031999,2]
[322268804,1712921440430,-332.95119539,0.00032,4]
[322268806,1712921440439,-1500.78124376,0.00032,3]
[322268808,1712921440449,-480.32,0.00032065,2]
[322268810,1712921440458,-1012.36,0.00032165,2]
[322268812,1712921440468,-7297.0442117,0.000324,2]
[322268814,1712921440478,-611.07740058,0.000326,20]
[322268817,1712921440490,-8485.64,0.00032603,2]
[322268818,1712921440499,-8074.58,0.00032603,2]
[322268821,1712921440509,-314.75329238,0.00032609,2]
[322268823,1712921440519,-256.87,0.00032675,2]
[322268825,1712921440529,-643.0,0.00032876,2]
[322268827,1712921440540,-150.0,0.00032877,2]
[322268829,1712921440551,-152.55,0.00032877,2]
[322268830,1712921440561,-321.31,0.00032877,2]
[322268832,1712921440572,-1023.966369,0.00033,30]
[322268834,1712921440581,-972.68108238,0.00033,2]
[322268837,1712921440592,-206.0,0.00033,2]
[322268839,1712921440602,-160.62596681,0.00033053,7]
[322268840,1712921440613,-154.6828105,0.0003309,7]
[322268843,1712921440623,-1019.8353,0.00033099,2]
[322268845,1712921440632,-1012.36,0.0003313,2]
[322268847,1712921440642,-407.23348638,0.00033136,2]
[322268849,1712921440652,-152.57568688,0.00033158,7]
[322268851,1712921440661,-152.37,0.00033165,2]
[322268853,1712921440671,-241.68,0.00033165,2]
[322268854,1712921440681,-160.62596681,0.00033198,7]
[322268856,1712921440690,-206.57,0.000332,2]
[322268859,1712921440699,-206.57,0.000332,2]
[322268861,1712921440709,-206.57,0.000332,2]
[322268862,1712921440718,-206.57,0.000332,2]
[322268864,1712921440728,-206.57,0.000332,2]
[322268867,1712921440738,-206.57,0.000332,2]
[322268869,1712921440747,-206.57,0.000332,2]
[322268871,1712921440756,-206.57,0.000332,2]
[322268873,1712921440765,-206.57,0.000332,2]
[322268874,1712921440775,-206.57,0.000332,2]
[322268877,1712921440785,-206.57,0.000332,2]
[322268879,1712921440794,-206.57,0.000332,2]
[322268881,1712921440804,-154.6828105,0.00033246,7]
[322268883,1712921440813,-152.57568688,0.00033279,7]
[322268884,1712921440823,-159.14360615,0.00033298,7]
[322268885,1712921440832,-152.57568688,0.00033308,7]
[322268886,1712921440841,-2108.672,0.00033355,2]
[322268887,1712921440851,-150.0,0.00033355,7]
[322268888,1712921440860,-159.14360615,0.00033399,7]
[322268889,1712921440869,-1082.29651,0.0003342,2]
[322268890,1712921440879,-152.57568688,0.00033432,7]
[322268891,1712921440888,-1137.11112217,0.000335,2]
[322268892,1712921440898,-3930.36,0.000335,2]
[322268893,1712921440908,-3930.36,0.000335,2]
[322268894,1712921440918,-836.04551471,0.000335,2]
[322268897,1712921441176,-3094.31448529,0.000335,2]
[322268898,1712921441186,-3930.36,0.000335,2]
[322268899,1712921441196,-3930.36,0.000335,2]
[322268900,1712921441207,-3930.36,0.000335,2]
[322268901,1712921441219,-2418.14351471,0.000335,2]
[322268902,1712921441380,-1512.21648529,0.000335,2]
[322268903,1712921441390,-3930.36,0.000335,2]
[322268904,1712921441400,-3930.36,0.000335,2]
[322268905,1712921441410,-3930.36,0.000335,2]
[322268906,1712921441419,-3930.36,0.000335,2]
[322268907,1712921441429,-3930.36,0.000335,2]
[322268908,1712921441439,-3930.36,0.000335,2]
[322268909,1712921441449,-1470.62351466,0.000335,2]
[322268910,1712921441490,-2459.73648534,0.000335,2]
[322268911,1712921441501,-3930.36,0.000335,2]
[322268912,1712921441511,-3930.36,0.000335,2]
[322268913,1712921441521,-3930.36,0.000335,2]
[322268914,1712921441532,-3930.36,0.000335,2]
[322268915,1712921441542,-3930.36,0.000335,2]
[322268916,1712921441552,-3930.36,0.000335,2]
[322268917,1712921441561,-157.96399926,0.00033663,7]
[322268918,1712921441571,-150.0,0.00033742,2]
[322268919,1712921441580,-215.0,0.00033821,2]
[322268920,1712921441591,-2289.0,0.00033821,2]
[322268921,1712921441600,-1422.498,0.00033821,2]
[322268922,1712921441610,-981.32,0.00033821,2]
[322268923,1712921441619,-474.21,0.00033821,2]
[322268924,1712921441629,-156.286,0.00033821,2]
[322268925,1712921441638,-551.379,0.00033821,2]
[322268926,1712921441648,-1285.944,0.00033821,2]
[322268927,1712921441658,-152.57568688,0.00033898,7]
[322268928,1712921441669,-151.08912702,0.00033937,7]
[322268929,1712921441679,-160.62596681,0.00033956,7]
[322268930,1712921441688,-8549.33594147,0.00033979,2]
[322268931,1712921441698,-8549.33594147,0.00033979,2]
[322268932,1712921441707,-8549.33594147,0.00033979,2]
[322268933,1712921441718,-1012.36,0.00034,2]
[322268934,1712921441727,-301.26,0.00034,2]
[322268935,1712921441737,-154.14042621,0.00034019,7]
[322268936,1712921441746,-159.14360615,0.00034057,7]
[322268937,1712921441756,-157.96399926,0.00034058,7]
[322268938,1712921441766,-1000.0,0.00034071,2]
[322268939,1712921441775,-1012.36,0.00034095,2]
[322268940,1712921441785,-275.5,0.000341,2]
[322268941,1712921441795,-500.0,0.00034113,2]
[322268942,1712921441805,-313.0,0.00034113,2]
[322268943,1712921441815,-305.0,0.00034113,2]
[322268944,1712921441825,-301.0,0.00034113,2]
[322268945,1712921441835,-508.0,0.00034113,2]
[322268946,1712921441844,-154.57743463,0.00034142,7]
[322268947,1712921441856,-160.62596681,0.00034148,7]
[322268948,1712921441865,-166.66666667,0.00034208,7]
[322268949,1712921441876,-643.0,0.00034246,2]
[322268950,1712921441885,-1000.0,0.00034247,2]
[322268951,1712921441896,-156.08416384,0.00034283,7]
[322268952,1712921441905,-160.62596681,0.000343,7]
[322268953,1712921441915,-155.07714216,0.00034317,7]
[322268954,1712921441924,-155.07714216,0.00034322,7]
[322268955,1712921441933,-150.07,0.00034326,2]
[322268956,1712921441942,-480.32,0.00034329,2]
[322268957,1712921441952,-1757.99,0.00034336,30]
[322268958,1712921441961,-1757.99,0.00034336,30]
[322268959,1712921441970,-1757.99,0.00034336,30]
[322268960,1712921441980,-1757.99,0.00034336,30]
[322268961,1712921441989,-154.6828105,0.00034355,7]
[322268962,1712921441998,-159.14360615,0.0003436,7]
[322268963,1712921442008,-154.14042621,0.0003437,7]
[322268964,1712921442185,-154.6828105,0.00034422,7]
[322268965,1712921442199,-154.6828105,0.00034449,7]
[322268966,1712921442210,-160.62596681,0.00034486,7]
[322268967,1712921442219,-154.30704407,0.00034527,7]
[322268968,1712921442228,-6043.79895407,0.000346,3]
[322268969,1712921442239,-150.0,0.00034607,2]
[322268970,1712921442249,-1757.99,0.0003461,30]
[322268971,1712921442261,-1757.99,0.0003461,30]
[322268972,1712921442270,-154.6828105,0.00034658,7]
[322268973,1712921442280,-4252.62701144,0.00034775,6]
[322268974,1712921442289,-338.60184659,0.00034775,2]
[322268975,1712921442299,-221.68913989,0.00034775,2]
[322268976,1712921442308,-1001.2087376,0.00034775,2]
[322268977,1712921442318,-159.45466933,0.00034775,2]
[322268978,1712921442328,-1038.85562996,0.00034775,2]
[322268979,1712921442336,-175.69907436,0.00034775,2]
[322268981,1712921442346,-954.85630386,0.00034775,2]
[322268982,1712921442355,-845.70742694,0.00034775,2]
[322268983,1712921442365,-1016.21687239,0.00034775,2]
[322268985,1712921442374,-185.62716117,0.00034775,2]
[322268987,1712921442383,-479.02651826,0.00034775,2]
[322268989,1712921442393,-7217.41553013,0.00034775,2]
[322268991,1712921442404,-643.0,0.00034775,2]
[322268993,1712921442413,-943.6124962,0.00034775,2]
[322268994,1712921442422,-557.34899794,0.00034775,2]
[322268995,1712921442431,-169.83525448,0.00034775,2]
[322268997,1712921442440,-702.20776656,0.00034775,2]
[322268999,1712921442449,-500.0,0.00034775,2]
[322269001,1712921442458,-550.0,0.00034775,2]
[322269002,1712921442467,-980.60759434,0.00034775,2]
[322269003,1712921442477,-500.0,0.00034775,2]
[322269004,1712921442487,-1005.25400921,0.00034775,2]
[322269006,1712921442496,-547.92017191,0.00034775,2]
[322269007,1712921442505,-150.0,0.00034775,2]
[322269009,1712921442514,-635.46741225,0.00034775,2]
[322269011,1712921442524,-609.49837063,0.00034775,2]
[322269012,1712921442534,-208.98868373,0.00034775,2]
[322269014,1712921442543,-437.28375193,0.00034775,2]
[322269016,1712921442552,-1038.41799516,0.00034775,2]
[322269017,1712921442562,-563.77176444,0.00034775,2]
[322269019,1712921442572,-1891.7327183,0.00034775,2]
[322269020,1712921442581,-234.21524962,0.00034775,2]
[322269021,1712921442591,-524.46681961,0.00034775,2]
[322269022,1712921442600,-887.87120328,0.00034775,2]
[322269023,1712921442611,-468.56272909,0.00034775,2]
[322269024,1712921442620,-385.0726192,0.00034775,2]
[322269025,1712921442630,-240.48623859,0.00034775,2]
[322269026,1712921442639,-316.94520274,0.00034775,2]
[322269027,1712921442649,-532.93634273,0.00034775,2]
[322269028,1712921442659,-354.74000938,0.00034775,2]
[322269029,1712921442668,-593.00899665,0.00034775,2]
[322269030,1712921442678,-337.6383419,0.00034775,2]
[322269031,1712921442687,-1005.65197391,0.00034775,2]
[322269032,1712921442697,-214.25680318,0.00034775,2]
[322269033,1712921442706,-1004.77757756,0.00034775,2]
[322269034,1712921442716,-150.0,0.00034775,2]
[322269035,1712921442725,-201.92,0.00034775,2]
[322269037,1712921442735,-1000.0,0.00034775,2]
[322269038,1712921442744,-1000.0,0.00034775,2]
[322269039,1712921442753,-1000.0,0.00034775,2]
[322269040,1712921442762,-1000.0,0.00034775,2]
[322269041,1712921442772,-1000.0,0.00034775,2]
[322269042,1712921442781,-1000.0,0.00034775,2]
[322269043,1712921442791,-154.53453383,0.00034775,13]
[322269044,1712921442800,-154.53453383,0.00034775,13]
[322269045,1712921442809,-154.53453383,0.00034775,13]
[322269046,1712921442820,-154.53453383,0.00034775,13]
[322269047,1712921442829,-7503.22805767,0.00034775,2]
[322269048,1712921442838,-155.07714216,0.00034791,7]
[322269049,1712921442848,-15277.67694784,0.000348,14]
[322269050,1712921442857,-237.72893047,0.00034818,7]
[322269051,1712921442867,-154.30704407,0.00034856,7]
[322269052,1712921442876,-152.57568688,0.00034874,7]
[322269053,1712921442886,-1757.99,0.00034883,30]
[322269054,1712921442895,-1757.99,0.00034883,30]
[322269055,1712921442904,-1012.36,0.00034965,2]
[322269056,1712921442914,-184.37949087,0.00035,2]
[322269057,1712921442923,-937.30779898,0.00035,2]
[322269058,1712921442932,-151.08912702,0.00035028,7]
[322269059,1712921442942,-1012.36,0.0003506,2]
[322269060,1712921442951,-275.5,0.000351,2]
[322269061,1712921442961,-160.62596681,0.00035113,7]
[322269062,1712921442970,-154.6828105,0.00035133,7]
[322269063,1712921442979,-1757.99,0.00035156,30]
[322269064,1712921442988,-1757.99,0.00035156,30]
[322269065,1712921442998,-159.14360615,0.00035157,7]
[322269066,1712921443007,-152.57568688,0.00035169,7]
[322269067,1712921443017,-154.30704407,0.00035196,7]
[322269068,1712921443028,-152.57568688,0.00035197,7]
[322269069,1712921443039,-157.96399928,0.0003523,7]
[322269070,1712921443049,-565.23,0.00035288,15]
[322269071,1712921443058,-150.0,0.000353,18]
[322269072,1712921443067,-154.14042621,0.0003531,7]
[322269073,1712921443077,-154.936025,0.00035316,2]
[322269074,1712921443087,-195.364549,0.00035316,2]
[322269075,1712921443097,-418.545252,0.00035316,2]
[322269076,1712921443108,-153.681844,0.00035316,2]
[322269077,1712921443117,-166.059866,0.00035316,2]
[322269078,1712921443127,-329.239055,0.00035316,2]
[322269079,1712921443136,-206.326857,0.00035316,2]
[322269080,1712921443146,-889.408661,0.00035316,2]
[322269081,1712921443155,-163.394115,0.00035316,2]
[322269082,1712921443164,-160.885194,0.00035316,2]
[322269083,1712921443176,-154.418911,0.00035316,2]
[322269084,1712921443186,-208.608099,0.00035316,2]
[322269085,1712921443195,-154.6828105,0.00035328,7]
[322269087,1712921443204,-407.23348638,0.00035371,2]
[322269089,1712921443215,-187.776789,0.00035371,2]
[322269091,1712921443224,-239.516629,0.00035371,2]
[322269093,1712921443232,-151.0,0.00035428,2]
[322269095,1712921443242,-1757.99,0.00035429,30]
[322269097,1712921443251,-1757.99,0.00035429,30]
[322269099,1712921443260,-166.41585679,0.00035432,7]
[322269101,1712921443270,-150.0,0.00035472,2]
[322269103,1712921443279,-155.07714216,0.00035514,7]
[322269105,1712921443288,-154.57743463,0.00035531,7]
[322269107,1712921443297,-154.6828105,0.00035536,7]
[322269109,1712921443307,-301.26,0.00035595,2]
[322269111,1712921443316,-3000.0,0.000356,2]
[322269113,1712921443325,-643.0,0.00035616,2]
[322269116,1712921443335,-152.57568688,0.00035695,7]
[322269118,1712921443344,-1757.99,0.00035703,30]
[322269119,1712921443353,-1757.99,0.00035703,30]
[322269120,1712921443363,-154.936025,0.00035758,2]
[322269121,1712921443373,-418.545252,0.00035758,2]
[322269122,1712921443382,-166.059866,0.00035758,2]
[322269123,1712921443391,-329.239055,0.00035758,2]
[322269124,1712921443400,-889.408661,0.00035758,2]
[322269125,1712921443411,-154.14042621,0.00035764,7]
[322269126,1712921443421,-154.6828105,0.00035774,7]
[322269127,1712921443431,-239.516629,0.00035813,2]
[322269128,1712921443440,-159.14360615,0.00035835,7]
[322269129,1712921443450,-166.81018581,0.00035866,7]
[322269130,1712921443459,-163.394115,0.00035905,2]
[322269131,1712921443469,-1082.29651,0.0003592,2]
[322269132,1712921443478,-1012.36,0.0003593,2]
[322269133,1712921443488,-156.33363119,0.00035944,7]
[322269134,1712921443498,-162.63437051,0.00035964,7]
[322269135,1712921443509,-154.6828105,0.00035971,7]
[322269136,1712921443519,-1757.99,0.00035976,30]
[322269137,1712921443529,-1757.99,0.00035976,30]
[322269138,1712921443539,-154.30704407,0.00035983,7]
[322269139,1712921443548,-612.10148746,0.00036,2]
[322269140,1712921443558,-163.4681833,0.00036012,7]
[322269141,1712921443568,-1012.36,0.00036025,2]
[322269142,1712921443579,-156.08416384,0.00036053,7]
[322269143,1712921443588,-401.78685,0.000361,2]
[322269144,1712921443598,-160.62596681,0.00036142,7]
[322269145,1712921443608,-154.936025,0.00036199,2]
[322269146,1712921443619,-418.545252,0.00036199,2]
[322269147,1712921443629,-166.059866,0.00036199,2]
[322269148,1712921443638,-329.239055,0.00036199,2]
[322269149,1712921443647,-889.408661,0.00036199,2]
[322269150,1712921443658,-154.30704407,0.00036238,7]
[322269151,1712921443667,-160.62596681,0.0003624,7]
[322269152,1712921443677,-1757.99,0.00036249,30]
[322269153,1712921443687,-1757.99,0.00036249,30]
[322269154,1712921443697,-160.62596681,0.0003625,7]
[322269155,1712921443708,-187.776789,0.00036255,2]
[322269156,1712921443717,-239.516629,0.00036255,2]
[322269157,1712921443727,-160.62596681,0.00036267,7]
[322269158,1712921443736,-1405.76128508,0.000363,2]
[322269159,1712921443746,-154.30704407,0.0003632,7]
[322269160,1712921443755,-152.57568688,0.00036321,7]
[322269161,1712921443765,-150.0,0.00036337,2]
[322269162,1712921443776,-163.394115,0.00036493,2]
[322269163,1712921443786,-1300.0,0.000365,13]
[322269164,1712921443795,-1757.99,0.00036522,30]
[322269165,1712921443805,-1757.99,0.00036522,30]
[322269166,1712921443815,-158.14981821,0.00036531,7]
[322269167,1712921443824,-154.6828105,0.0003654,7]
[322269168,1712921443833,-152.57568688,0.0003658,7]
[322269169,1712921443842,-480.32,0.00036593,2]
[322269170,1712921443851,-1700.0,0.000366,13]
[322269171,1712921443860,-154.6828105,0.00036633,7]
[322269172,1712921443870,-154.936025,0.00036641,2]
[322269173,1712921443879,-418.545252,0.00036641,2]
[322269174,1712921443888,-166.059866,0.00036641,2]
[322269175,1712921443897,-329.239055,0.00036641,2]
[322269176,1712921443907,-889.408661,0.00036641,2]
[322269177,1712921443917,-153.95330426,0.00036655,7]
[322269178,1712921443925,-239.516629,0.00036697,2]
[322269179,1712921443934,-2200.0,0.000367,13]
[322269180,1712921443944,-154.57743463,0.00036765,7]
[322269181,1712921443953,-1757.99,0.00036795,30]
[322269182,1712921443962,-1757.99,0.00036795,30]
[322269183,1712921443971,-400.0,0.000368,13]
[322269184,1712921443980,-217.164,0.00036821,2]
[322269185,1712921443990,-1390.0,0.00036821,2]
[322269186,1712921443998,-967.0,0.00036821,2]
[322269187,1712921444008,-540.0,0.00036821,2]
[322269188,1712921444017,-1260.0,0.00036821,2]
[322269189,1712921444026,-150.07,0.0003689,2]
[322269190,1712921444035,-1012.36,0.00036895,2]
[322269191,1712921444044,-400.0,0.000369,13]
[322269192,1712921444054,-2871.40552492,0.000369,2]
[322269193,1712921444062,-2871.40552492,0.000369,2]
[322269194,1712921444071,-2871.40552492,0.000369,2]
[322269195,1712921444081,-2871.40552492,0.000369,2]
[322269196,1712921444090,-2871.40552492,0.000369,2]
[322269197,1712921444099,-2871.40552492,0.000369,2]
[322269198,1712921444108,-2871.40552492,0.000369,2]
[322269199,1712921444117,-2871.40552492,0.000369,2]
[322269200,1712921444127,-2871.40552492,0.000369,2]
[322269201,1712921444136,-2871.40552492,0.000369,2]
[322269202,1712921444144,-2871.40552492,0.000369,2]
[322269203,1712921444153,-2871.40552492,0.000369,2]
[322269204,1712921444165,-2871.40552492,0.000369,2]
[322269205,1712921444178,-2871.40552492,0.000369,2]
[322269206,1712921444187,-2871.40552492,0.000369,2]
[322269207,1712921444196,-2871.40552492,0.000369,2]
[322269208,1712921444205,-2871.40552492,0.000369,2]
[322269209,1712921444216,-2871.40552492,0.000369,2]
[322269210,1712921444225,-2871.40552492,0.000369,2]
[322269211,1712921444234,-2871.9,0.000369,2]
[322269212,1712921444244,-1077.52766752,0.000369,2]
[322269213,1712921444253,-1077.52766752,0.000369,2]
[322269214,1712921444262,-1077.52766752,0.000369,2]
[322269215,1712921444272,-1077.52766752,0.000369,2]
[322269216,1712921444282,-1077.52766752,0.000369,2]
[322269217,1712921444291,-1077.52766752,0.000369,2]
[322269218,1712921444301,-1077.52766752,0.000369,2]
[322269219,1712921444311,-1077.52766752,0.000369,2]
[322269220,1712921444320,-1077.52766752,0.000369,2]
[322269221,1712921444329,-1077.52766752,0.000369,2]
[322269222,1712921444339,-1077.52766752,0.000369,2]
[322269223,1712921444349,-1077.52766752,0.000369,2]
[322269224,1712921444360,-1077.52766752,0.000369,2]
[322269225,1712921444370,-1077.52766752,0.000369,2]
[322269226,1712921444380,-1077.52766752,0.000369,2]
[322269227,1712921444391,-1077.52766752,0.000369,2]
[322269228,1712921444401,-1077.52766752,0.000369,2]
[322269229,1712921444412,-1077.52766752,0.000369,2]
[322269230,1712921444422,-1077.52766752,0.000369,2]
[322269231,1712921444432,-1078.02,0.000369,2]
[322269232,1712921444443,-211.84502001,0.000369,2]
[322269233,1712921444454,-211.84502001,0.000369,2]
[322269234,1712921444464,-211.84502001,0.000369,2]
[322269235,1712921444474,-211.84502001,0.000369,2]
[322269236,1712921444483,-211.84502001,0.000369,2]
[322269237,1712921444493,-211.84502001,0.000369,2]
[322269238,1712921444502,-211.84502001,0.000369,2]
[322269239,1712921444511,-211.84502001,0.000369,2]
[322269240,1712921444522,-211.84502001,0.000369,2]
[322269241,1712921444572,-211.84502001,0.000369,2]
[322269242,1712921444582,-211.84502001,0.000369,2]
[322269243,1712921444592,-211.84502001,0.000369,2]
[322269244,1712921444601,-211.84502001,0.000369,2]
[322269245,1712921444611,-211.84502001,0.000369,2]
[322269246,1712921444621,-211.84502001,0.000369,2]
[322269247,1712921444630,-211.84502001,0.000369,2]
[322269248,1712921444640,-211.84502001,0.000369,2]
[322269249,1712921444649,-211.84502001,0.000369,2]
[322269250,1712921444658,-211.84502001,0.000369,2]
[322269251,1712921444667,-212.34,0.000369,2]
[322269252,1712921444675,-935.58573716,0.000369,2]
[322269253,1712921444684,-935.58573716,0.000369,2]
[322269254,1712921444694,-935.58573716,0.000369,2]
[322269255,1712921444703,-935.58573716,0.000369,2]
[322269256,1712921444712,-935.58573716,0.000369,2]
[322269257,1712921444721,-935.58573716,0.000369,2]
[322269258,1712921444730,-935.58573716,0.000369,2]
[322269259,1712921444739,-935.58573716,0.000369,2]
[322269260,1712921444748,-935.58573716,0.000369,2]
[322269261,1712921444757,-935.58573716,0.000369,2]
[322269262,1712921444766,-935.58573716,0.000369,2]
[322269263,1712921444775,-935.58573716,0.000369,2]
[322269264,1712921444784,-935.58573716,0.000369,2]
[322269265,1712921444793,-935.58573716,0.000369,2]
[322269266,1712921444802,-935.58573716,0.000369,2]
[322269267,1712921444811,-935.58573716,0.000369,2]
[322269268,1712921444822,-935.58573716,0.000369,2]
[322269269,1712921444831,-935.58573716,0.000369,2]
[322269270,1712921444840,-935.58573716,0.000369,2]
[322269271,1712921444850,-936.08,0.000369,2]
[322269272,1712921444859,-156.33363119,0.00036903,7]
[322269273,1712921444868,-157.43248173,0.00036944,7]
[322269274,1712921444878,-643.0,0.00036986,7]
[322269275,1712921444887,-1012.36,0.0003699,2]
[322269276,1712921444895,-150.0,0.00036999,30]
[322269277,1712921444904,-614.56573096,0.00037,2]
[322269278,1712921444915,-153.1167312,0.00037,2]
[322269279,1712921444924,-335304.0,0.00037,2]
[322269280,1712921444933,-55563.50803717,0.00037,5]
[322269281,1712921444957,-709.61743026,0.00037,5]
[322269282,1712921444980,-7312.01116813,0.00037,5]
[322269283,1712921445193,-359.52115741,0.00031407,5]
[322269284,1712921445203,-896.92,0.00033821,2]
[322269285,1712921445212,-1435.54224026,0.000369,2]
[322269286,1712921445222,-32791.92800411,0.00037,5]
[322269287,1712921445248,-1306.16814257,0.00037,5]
[322269288,1712921445260,-1452.5,0.00037,5]
[322269289,1712921445272,-102832.72261114,0.00037,5]
[322269364,1712921445955,-359.52115735,0.00032192,5]
[322269365,1712921445965,-160668.40727077,0.00037,5]
[322269366,1712921445978,-15338.72869106,0.00037,5]
[322269367,1712921445995,-12913.63671569,0.00037,5]
[322269368,1712921446014,-8412.16667993,0.00037,5]
[322269395,1712922571348,1000.0,0.00027767,60]
[322269398,1712922631760,-780.05382611,0.00020984,2]
[322269399,1712922631770,-236.06366444,0.00020996,2]
[322269400,1712922631780,-250.0,0.00021,3]
[322269401,1712922631789,-2233.88253705,0.00021818,2]